bitfinex-derivatives/quotes_ETHF0:USTF0_20250712
["timestamp","ask_amount","ask_price","bid_price","bid_amount"]
[1752292241266,23.79556,2963.6,2963.4,0.6108]
[1752292241467,0.67457,2963.5,2963.4,0.6108]
[1752292241766,23.79555,2963.6,2963.5,1.5129]
[1752292241966,24.70079562,2963.6,2963.5,1.5129]
[1752292242265,23.121,2963.6,2963.5,2.4337]
[1752292242762,23.121,2963.6,2963.5,3.10827]
[1752292242969,4.49469159,2963.9,2963.8,1.5129]
[1752292243168,29.18716493,2963.9,2963.8,2.4337]
[1752292243365,27.90027334,2963.9,2963.8,2.4337]
[1752292244371,26.99528,2963.9,2963.8,2.4337]
[1752292244676,26.3208,2963.9,2963.8,2.4337]
[1752292245174,26.99528,2963.9,2963.8,2.4337]
[1752292246278,0.67452,2963.7,2963.6,0.9616]
[1752292246473,0.6354,2963.5,2962.9,3.2078]
[1752292246670,1.31002,2963.3,2963.2,0.9839]
[1752292246973,1.31002,2963.3,2963.2,1.9455]
[1752292247876,2.59691159,2963.3,2963.2,1.9455]
[1752292250076,2.59691159,2963.3,2963.2,0.9839]
[1752292250275,2.59691159,2963.3,2962.7,0.6481]
[1752292250276,0.67473,2962.8,2962.7,0.6481]
[1752292250476,1.96162159,2962.8,2962.7,0.6481]
[1752292250873,1.96162159,2962.8,2962.7,2.5936]
[1752292265490,2.59702159,2962.8,2962.7,2.5936]
[1752292265691,2.26938,2962.2,2962.1,0.6481]
[1752292265992,4.46787159,2962.2,2962.1,0.6481]
[1752292266789,3.55627159,2962.2,2962.1,0.6481]
[1752292266995,1.5945,2962.2,2962.1,0.6481]
[1752292267388,2.26937,2962.2,2962.1,0.6481]
[1752292267585,2.26937,2962.2,2962.1,2.5936]
[1752292268092,1.5945,2962.2,2962.1,2.5936]
[1752292268587,2.26937,2962.2,2962.1,2.5936]
[1752292271593,3.18097,2962.2,2962.1,2.5936]
[1752292275093,1.5945,2962.2,2962.1,2.5936]
[1752292275397,2.26937,2962.2,2962.1,2.5936]
[1752292275692,2.26937,2962.2,2962.1,0.9839]
[1752292275896,2.26937,2962.2,2962.1,2.5613]
[1752292275897,3.21637,2962.2,2962.1,2.5613]
[1752292276396,2.26937,2962.2,2962.1,2.5613]
[1752292278598,3.21637,2962.2,2962.1,2.5613]
[1752292292008,2.26937,2962.2,2962.1,2.5613]
[1752292295005,3.2078,2962.3,2962.2,0.67487]
[1752292295200,0.90361961,2962.3,2962.2,3.16997]
[1752292297205,1.53361961,2962.3,2962.2,2.4951]
[1752292297504,2.44611961,2962.3,2962.2,2.4951]
[1752292298202,0.90361961,2962.3,2962.2,3.16997]
[1752292299410,0.90361961,2962.3,2962.2,2.4951]
[1752292299913,1.57845961,2962.3,2962.2,2.4951]
[1752292300410,0.90361961,2962.3,2962.2,2.4951]
[1752292300710,0.90361961,2962.3,2962.2,3.16997]
[1752292302217,0.90361961,2962.3,2962.2,2.4951]
[1752292302413,0.90361961,2962.3,2962.2,3.16997]
[1752292302914,1.57845961,2962.3,2962.2,2.4951]
[1752292303217,0.90361961,2962.3,2962.2,2.4951]
[1752292303515,0.90361961,2962.3,2962.2,3.16997]
[1752292303918,23.72278,2962.6,2962.4,2.575]
[1752292304111,0.90491387,2962.5,2962.4,0.6589]
[1752292304616,0.90491387,2962.5,2962.4,1.5823]
[1752292304911,1.57971387,2962.5,2962.4,2.575]
[1752292305116,2.47841387,2962.5,2962.4,2.575]
[1752292305918,3.15321387,2962.5,2962.4,2.575]
[1752292306819,2.47841387,2962.5,2962.4,2.575]
[1752292307313,3.15321387,2962.5,2962.4,2.575]
[1752292308120,2.47841387,2962.5,2962.4,3.24982]
[1752292308818,0.90491387,2962.5,2962.4,3.24982]
[1752292311213,0.90491387,2962.5,2962.4,2.575]
[1752292311621,0.90491387,2962.5,2962.4,3.24982]
[1752292312519,0.90491387,2962.5,2962.4,2.575]
[1752292312821,0.90491387,2962.5,2962.4,3.24982]
[1752292313720,0.90491387,2962.5,2962.4,2.575]
[1752292314321,0.90491387,2962.5,2962.4,3.24982]
[1752292314722,1.57971387,2962.5,2962.4,2.575]
[1752292315423,2.24071387,2962.5,2962.4,2.575]
[1752292316525,3.21801387,2962.5,2962.4,2.575]
[1752292316716,2.54321387,2962.5,2962.4,3.24982]
[1752292316917,0.90491387,2962.5,2962.4,3.24982]
[1752292318126,1.57971387,2962.5,2962.4,2.575]
[1752292318627,0.90491387,2962.5,2962.4,3.24982]
[1752292319827,1.57971387,2962.5,2962.4,2.575]
[1752292320228,0.90491387,2962.5,2962.4,3.24982]
[1752292320629,1.57971387,2962.5,2962.4,3.24982]
[1752292321630,0.90491387,2962.5,2962.4,3.24982]
[1752292321929,1.57971387,2962.5,2962.4,2.575]
[1752292322930,3.21801387,2962.5,2962.4,2.575]
[1752292323131,2.5505,2962.2,2962.1,2.6117]
[1752292323329,3.83739159,2962.2,2962.1,2.6117]
[1752292324130,4.51226159,2962.2,2962.1,2.6117]
[1752292331045,3.83739159,2962.2,2962.1,3.28659]
[1752292331235,2.5505,2962.2,2962.1,3.28659]
[1752292332736,1.6383,2962.2,2962.1,3.28659]
[1752292332937,1.6383,2962.2,2961.9,1.28689159]
[1752292332938,4.1851,2962.5,2962.3,1.33372]
[1752292333138,0.90441271,2962.4,2962.3,1.33372]
[1752292333535,0.90441271,2962.4,2962.3,3.22962]
[1752292334642,0.9773,2962.5,2962.3,3.22962]
[1752292334838,1.6253,2962.5,2962.4,1.5861]
[1752292335036,1.6253,2962.5,2962.4,2.5219]
[1752292335647,1.6253,2962.5,2962.4,3.19672]
[1752292336644,1.65446,2962.7,2962.5,0.67479]
[1752292336943,1.6277,2962.6,2962.5,3.14579]
[1752292337944,1.6277,2962.6,2962.5,2.471]
[1752292338145,2.30247,2962.6,2962.5,2.471]
[1752292338346,1.6277,2962.6,2962.5,2.471]
[1752292338947,1.6277,2962.6,2962.5,3.1458]
[1752292339440,2.53224235,2962.6,2962.5,3.1458]
[1752292341744,2.53224235,2962.6,2962.5,2.471]
[1752292342249,2.53224235,2962.6,2962.5,3.1458]
[1752292342948,2.53224235,2962.6,2962.5,2.471]
[1752292344958,3.20701235,2962.6,2962.5,2.471]
[1752292345256,1.55254235,2962.6,2962.5,3.1458]
[1752292346357,2.53224235,2962.6,2962.5,3.1458]
[1752292346857,2.53224235,2962.6,2962.5,2.471]
[1752292348161,3.20701235,2962.6,2962.5,2.471]
[1752292351761,2.53224235,2962.6,2962.5,3.1458]
[1752292352161,2.53224235,2962.6,2962.5,2.471]
[1752292352361,2.53224235,2962.6,2962.5,3.1458]
[1752292352562,2.53224235,2962.6,2962.5,2.471]
[1752292352962,2.53224235,2962.6,2962.5,3.1458]
[1752292354264,2.53224235,2962.6,2962.5,2.471]
[1752292354463,2.53224235,2962.6,2962.5,3.1458]
[1752292355262,2.53224235,2962.6,2962.5,2.471]
[1752292355861,2.53224235,2962.6,2962.5,3.1458]
[1752292356267,2.53224235,2962.6,2962.5,2.471]
[1752292356565,3.20701235,2962.6,2962.5,2.471]
[1752292356961,0.90454235,2962.6,2962.5,2.471]
[1752292357167,0.90454235,2962.6,2962.5,3.1458]
[1752292357368,2.53224235,2962.6,2962.5,3.1458]
[1752292357666,3.20701235,2962.6,2962.5,2.471]
[1752292358063,2.53224235,2962.6,2962.5,2.471]
[1752292358267,2.53224235,2962.6,2962.5,3.1458]
[1752292360572,2.53224235,2962.6,2962.5,2.471]
[1752292360774,2.53224235,2962.6,2962.5,3.1458]
[1752292361275,2.53224235,2962.6,2962.5,2.471]
[1752292362073,3.20701235,2962.6,2962.5,2.471]
[1752292363973,2.53224235,2962.6,2962.5,2.471]
[1752292364175,2.53224235,2962.6,2962.5,3.1458]
[1752292364775,3.20701235,2962.6,2962.5,1.5618]
[1752292364973,3.20701235,2962.6,2962.5,2.471]
[1752292365470,2.53224235,2962.6,2962.5,3.1458]
[1752292365677,2.53224235,2962.6,2962.5,2.471]
[1752292366174,2.53224235,2962.6,2962.5,3.1458]
[1752292366475,4.18091235,2962.6,2962.5,2.471]
[1752292366675,4.18091235,2962.6,2962.5,3.1458]
[1752292367475,3.50614235,2962.6,2962.5,3.1458]
[1752292367868,2.53224235,2962.6,2962.5,3.1458]
[1752292370177,4.18091235,2962.6,2962.5,2.471]
[1752292371073,4.18091235,2962.6,2962.5,3.1458]
[1752292371274,4.18091235,2962.6,2962.5,2.471]
[1752292372973,4.18091235,2962.6,2962.5,0.9358]
[1752292373179,3.14337,2962.3,2962.2,2.532]
[1752292373381,4.15434822,2962.3,2962.2,2.532]
[1752292374677,2.50557822,2962.3,2962.2,2.532]
[1752292374977,3.18041822,2962.3,2962.2,2.532]
[1752292377679,2.50557822,2962.3,2962.2,2.532]
[1752292377876,2.50557822,2962.3,2962.2,3.20687]
[1752292378076,2.50557822,2962.3,2962.2,2.532]
[1752292378377,3.18041822,2962.3,2962.2,2.532]
[1752292378978,2.16944,2962.3,2962.2,2.532]
[1752292379479,7.25480988,2962.3,2962.2,2.532]
[1752292379881,7.25480988,2962.3,2962.2,1.5689]
[1752292380082,1.27232,2962.0,2961.9,2.532]
[1752292380380,3.14342,2962.0,2961.9,2.532]
[1752292381381,3.14341,2962.0,2961.9,2.532]
[1752292382081,2.4685,2962.0,2961.9,3.20693]
[1752292382278,2.4685,2962.0,2961.9,2.532]
[1752292382685,3.14341,2962.0,2961.9,2.532]
[1752292383677,2.4685,2962.0,2961.9,2.532]
[1752292384081,3.14341,2962.0,2961.9,2.532]
[1752292385783,2.4685,2962.0,2961.9,2.532]
[1752292386185,3.14341,2962.0,2961.9,2.532]
[1752292389082,2.4685,2962.0,2961.9,2.532]
[1752292389481,2.4685,2962.0,2961.9,3.20693]
[1752292390090,2.4685,2962.0,2961.9,2.532]
[1752292390289,3.14341,2962.0,2961.9,2.532]
[1752292390989,2.4685,2962.0,2961.9,3.20693]
[1752292391383,1.4946,2962.0,2961.9,3.20693]
[1752292392192,1.4946,2962.0,2961.9,2.532]
[1752292394494,1.4946,2962.0,2961.9,3.20693]
[1752292395997,1.4946,2962.0,2961.9,2.532]
[1752292396693,1.4946,2962.0,2961.9,3.20693]
[1752292396896,1.4946,2962.0,2961.9,2.532]
[1752292397997,1.4946,2962.0,2961.9,3.20693]
[1752292405598,2.5158,2962.2,2962.1,1.31809]
[1752292405799,1.5419,2962.2,2962.1,3.27699]
[1752292406499,2.44538725,2962.2,2962.1,3.27699]
[1752292406999,1.5419,2962.2,2962.1,3.27699]
[1752292407205,2.44534749,2962.2,2962.1,3.27699]
[1752292407801,1.50444749,2962.2,2962.1,3.27699]
[1752292408103,0.90344749,2962.2,2962.1,3.27699]
[1752292409198,2.44552391,2962.2,2962.1,3.27699]
[1752292410197,3.42972391,2962.2,2962.1,3.27699]
[1752292410802,2.44552391,2962.2,2962.1,3.27699]
[1752292427627,0.90362391,2962.2,2962.1,3.27699]
[1752292427934,3.2078,2962.4,2962.3,3.20984]
[1752292428224,4.11149307,2962.4,2962.3,3.20984]
[1752292430933,2.47849307,2962.4,2962.3,3.20984]
[1752292432929,2.47849307,2962.4,2962.3,2.535]
[1752292433133,3.44559307,2962.4,2962.3,2.535]
[1752292433435,3.44559307,2962.4,2962.3,3.20984]
[1752292433635,3.44559307,2962.4,2962.3,2.535]
[1752292435937,3.21674,2962.3,2962.2,0.9203]
[1752292436235,1.27507,2962.2,2962.1,1.8751]
[1752292436435,3.21677,2962.2,2962.1,1.8751]
[1752292436636,3.21677,2962.2,2962.1,0.9203]
[1752292437135,3.21677,2962.2,2961.9,0.9548]
[1752292437335,7.43558822,2962.0,2961.9,2.535]
[1752292438837,6.76067822,2962.0,2961.9,3.20993]
[1752292439136,6.76067822,2962.0,2961.9,2.535]
[1752292439845,3.55287822,2962.0,2961.9,2.535]
[1752292440346,3.55287822,2962.0,2961.9,3.20993]
[1752292440547,1.5748,2962.0,2961.9,3.20993]
[1752292440745,0.6002,2962.0,2961.9,3.20993]
[1752292441445,1.5748,2962.0,2961.9,2.535]
[1752292441644,1.5748,2962.0,2961.9,3.20993]
[1752292441846,1.5748,2962.0,2961.9,2.535]
[1752292443547,1.5748,2962.0,2961.9,3.20993]
[1752292444349,1.5748,2962.0,2961.9,2.535]
[1752292444648,0.6002,2962.0,2961.9,3.20993]
[1752292446550,0.9746,2962.2,2962.0,0.6749]
[1752292446849,1.5748,2962.2,2962.1,0.6599]
[1752292447044,3.43316378,2962.2,2962.1,0.6599]
[1752292447348,4.10803378,2962.2,2962.1,1.6147]
[1752292447548,4.10803378,2962.2,2962.1,2.535]
[1752292447758,3.43316378,2962.2,2962.1,2.535]
[1752292448152,4.10803378,2962.2,2962.1,2.535]
[1752292452353,4.10787662,2962.2,2962.1,2.535]
[1752292454858,2.24967,2962.2,2962.1,2.535]
[1752292456656,0.6002,2962.2,2962.1,3.20989]
[1752292456860,3.2078,2962.3,2962.2,3.15707]
[1752292457048,4.0988909,2962.3,2962.2,3.15707]
[1752292457253,4.0988909,2962.3,2962.2,2.4822]
[1752292459460,4.09896012,2962.3,2962.2,2.4822]
[1752292460956,4.09896012,2962.3,2962.2,3.15707]
[1752292461256,4.10165259,2962.3,2962.2,3.15707]
[1752292466661,4.73515259,2962.3,2962.2,3.15707]
[1752292466858,5.65495259,2962.3,2962.2,3.15707]
[1752292467160,4.73515259,2962.3,2962.2,3.15707]
[1752292467757,1.01112996,2962.7,2962.4,0.6047]
[1752292467963,2.44758755,2962.6,2962.5,3.157]
[1752292470563,2.44758755,2962.6,2962.5,2.4822]
[1752292471265,2.44698242,2962.6,2962.5,2.4822]
[1752292471664,2.44698242,2962.6,2962.5,3.157]
[1752292472468,2.44698242,2962.6,2962.5,2.4822]
[1752292472765,7.25935242,2962.6,2962.5,2.4822]
[1752292472966,6.58458242,2962.6,2962.5,2.4822]
[1752292473166,7.25935242,2962.6,2962.5,2.4822]
[1752292474067,7.25935242,2962.6,2962.5,0.9683]
[1752292474761,8.54632489,2962.6,2962.5,0.9683]
[1752292476961,8.54632489,2962.6,2962.5,3.157]
[1752292477160,8.54632489,2962.6,2962.5,2.4822]
[1752292477565,5.65478242,2962.6,2962.5,3.157]
[1752292477970,4.73498242,2962.6,2962.5,3.157]
[1752292478472,1.52718242,2962.6,2962.5,3.157]
[1752292478663,2.44698242,2962.6,2962.5,3.157]
[1752292478860,0.89368242,2962.6,2962.5,3.157]
[1752292479370,3.2078,2962.9,2962.8,0.67473]
[1752292479567,4.1018506,2962.9,2962.8,3.15693]
[1752292479965,0.8940506,2962.9,2962.8,3.15693]
[1752292480272,0.8940506,2962.9,2962.8,8.15693]
[1752292480469,3.2078,2963.2,2963.1,1.27936]
[1752292480674,3.2078,2963.2,2963.1,4.44383247]
[1752292481174,1.21364075,2963.5,2963.4,3.15679]
[1752292481463,1.21364075,2963.6,2963.5,0.67457]
[1752292481664,2.76694075,2963.7,2963.6,1.8775]
[1752292481872,2.76694075,2963.7,2963.6,2.4822]
[1752292483171,1.5533,2963.7,2963.6,2.4822]
[1752292484471,1.5533,2963.7,2963.6,3.15675]
[1752292484674,1.5533,2963.7,2963.6,2.4822]
[1752292492879,2.5364,2963.7,2963.6,2.4822]
[1752292493383,1.5533,2963.7,2963.6,3.15675]
[1752292494686,1.5533,2963.7,2963.6,2.4822]
[1752292494982,0.67448,2963.9,2963.6,1.5139]
[1752292495187,1.5728,2963.9,2963.8,2.5884]
[1752292496488,1.5728,2963.9,2963.8,3.2629]
[1752292498782,3.8822,2964.3,2964.0,0.67445]
[1752292498983,4.7925,2964.3,2964.2,2.5884]
[1752292499588,6.43809,2964.3,2964.2,2.5884]
[1752292499990,6.43809,2964.3,2964.2,0.9947]
[1752292500190,4.7925,2964.3,2964.2,0.9822]
[1752292500491,0.67449,2963.9,2963.7,0.9947]
[1752292500682,2.2592,2963.8,2963.7,0.9947]
[1752292501185,3.2304,2963.8,2963.7,0.9947]
[1752292502794,1.5728,2963.6,2963.5,2.5884]
[1752292503086,2.5559,2963.6,2963.5,2.5884]
[1752292503488,3.23045,2963.6,2963.5,2.5884]
[1752292503993,2.5559,2963.6,2963.5,2.5884]
[1752292504294,0.6016,2963.3,2963.2,3.26302]
[1752292504589,1.5728,2963.3,2963.2,3.26302]
[1752292505294,1.5728,2963.5,2963.4,2.26829]
[1752292505494,1.5728,2963.5,2963.4,3.26299]
[1752292505998,1.5728,2963.5,2963.4,2.5884]
[1752292507389,2.5559,2963.5,2963.4,2.5884]
[1752292507591,3.23047,2963.5,2963.4,0.9947]
[1752292509388,2.5559,2963.5,2963.4,0.9947]
[1752292509592,2.5559,2963.5,2963.4,2.5884]
[1752292510199,3.23047,2963.5,2963.4,1.6062]
[1752292511198,2.5559,2963.5,2963.4,1.6062]
[1752292512000,2.5559,2963.5,2963.4,2.5884]
[1752292513002,2.5559,2963.5,2963.4,3.26299]
[1752292514102,2.5559,2963.5,2963.4,2.5884]
[1752292517008,3.23047,2963.5,2963.4,2.5884]
[1752292517308,2.5559,2963.5,2963.4,2.5884]
[1752292518411,3.8094,2963.5,2962.9,1.899]
[1752292518612,1.5377,2963.1,2963.0,2.18647]
[1752292518806,1.5377,2963.1,2963.0,3.17237]
[1752292519603,1.5377,2963.3,2963.2,0.5987]
[1752292519812,1.5377,2963.3,2963.2,2.4977]
[1752292520316,3.88231,2963.8,2963.4,1.5846]
[1752292520509,2.49526339,2963.7,2963.4,1.27328]
[1752292520709,1.5377,2963.6,2963.5,2.4977]
[1752292521013,1.5377,2963.6,2963.5,3.17227]
[1752292521709,0.5984,2963.6,2963.5,2.4977]
[1752292521909,2.521,2963.6,2963.5,2.4977]
[1752292522105,4.0770368,2963.6,2963.5,2.4977]
[1752292522405,5.36400927,2963.6,2963.5,0.9859]
[1752292523611,4.0770368,2963.6,2963.5,0.9859]
[1752292526017,3.4024868,2963.6,2963.5,0.9859]
[1752292527118,3.4024868,2963.6,2963.5,1.66047]
[1752292527916,4.0770568,2963.6,2963.4,0.67459]
[1752292528112,5.7289,2963.5,2963.4,1.66049]
[1752292528313,5.7289,2963.5,2963.4,3.17229]
[1752292528515,6.61039175,2963.5,2963.4,3.17229]
[1752292528717,7.28496175,2963.5,2963.4,3.17229]
[1752292529015,0.5984,2963.3,2963.2,0.9859]
[1752292529219,3.19572,2963.3,2963.2,0.9859]
[1752292529419,4.07724395,2963.3,2963.2,0.9859]
[1752292530115,3.40262395,2963.3,2963.2,3.17234]
[1752292530320,1.5377,2963.3,2963.2,3.17234]
[1752292533522,0.9393,2963.4,2963.3,1.5118]
[1752292533822,1.82064244,2963.4,2963.3,3.17232]
[1752292534519,2.41904244,2963.4,2963.3,3.17232]
[1752292535323,2.41904244,2963.4,2963.3,2.4977]
[1752292535524,2.41904244,2963.4,2963.3,3.17232]
[1752292535726,0.88134244,2963.4,2963.3,3.17232]
[1752292536526,2.41904244,2963.4,2963.3,2.4977]
[1752292537922,3.09363244,2963.4,2963.3,1.5846]
[1752292538122,4.07703244,2963.4,2963.3,1.5846]
[1752292538323,4.07703244,2963.4,2963.3,2.4977]
[1752292538728,4.07703244,2963.4,2963.3,1.5846]
[1752292539628,4.07703244,2963.4,2963.3,2.25922]
[1752292540131,4.07703244,2963.4,2963.3,1.5846]
[1752292544728,4.07703244,2963.4,2963.3,2.4977]
[1752292546934,4.07703244,2963.4,2963.3,0.9859]
[1752292549535,3.40244244,2963.4,2963.3,1.66052]
[1752292549731,3.40244244,2963.4,2963.3,2.61132]
[1752292550034,4.07703244,2963.4,2963.3,2.5747]
[1752292550938,3.09363244,2963.4,2963.3,2.5747]
[1752292551239,2.41904244,2963.4,2963.3,3.24932]
[1752292551445,0.88134244,2963.4,2963.3,3.24932]
[1752292555641,3.2078,2963.5,2963.4,0.67459]
[1752292555845,3.2078,2963.5,2963.4,3.25029]
[1752292556941,4.7566,2963.8,2963.7,2.29942]
[1752292557144,5.63748106,2963.8,2963.7,2.5757]
[1752292558250,6.31198106,2963.8,2963.7,2.5757]
[1752292558943,5.63748106,2963.8,2963.7,2.5757]
[1752292560146,6.31198106,2963.8,2963.7,2.5757]
[1752292560448,5.63748106,2963.8,2963.7,2.5757]
[1752292560648,6.31198106,2963.8,2963.7,2.5757]
[1752292561047,7.21978106,2963.8,2963.7,2.5757]
[1752292568249,3.13115,2963.6,2963.5,2.5757]
[1752292568449,3.13115,2963.6,2963.5,1.6249]
[1752292568855,3.13115,2963.6,2963.5,2.5757]
[1752292570552,2.22335,2963.6,2963.5,2.5757]
[1752292572353,3.13115,2963.6,2963.5,2.5757]
[1752292577357,3.13115,2963.6,2963.5,0.9869]
[1752292577553,4.01163063,2963.6,2963.5,0.9869]
[1752292579157,7.21943063,2963.6,2963.5,0.9869]
[1752292580558,4.01163063,2963.6,2963.5,0.9869]
[1752292582059,3.19657,2963.5,2963.4,2.4936]
[1752292585160,4.07807212,2963.5,2963.4,2.4936]
[1752292587062,5.36504459,2963.5,2963.4,0.9314]
[1752292587756,5.36504459,2963.5,2963.0,1.5622]
[1752292587757,1.27206,2963.1,2963.0,1.5622]
[1752292587956,3.19666,2963.1,2963.0,1.5622]
[1752292588159,3.19666,2963.1,2963.0,2.4936]
[1752292589866,6.40446,2963.1,2963.0,2.4936]
[1752292593670,3.19666,2963.1,2963.0,2.4936]
[1752292596766,3.2078,2963.4,2963.0,2.4936]
[1752292596966,3.2078,2963.4,2963.2,1.5622]
[1752292596967,3.12347272,2963.3,2963.2,1.5622]
[1752292597173,4.07647272,2963.3,2963.2,0.9314]
[1752292597377,0.5974,2963.1,2962.2,6.24420966]
[1752292597575,3.53077247,2962.5,2962.4,2.4936]
[1752292598269,4.48377247,2962.5,2962.4,2.4936]
[1752292598469,3.53077247,2962.5,2962.4,2.4936]
[1752292599572,4.48377247,2962.5,2962.4,2.4936]
[1752292599772,3.53077247,2962.5,2962.4,2.4936]
[1752292600273,4.48377247,2962.5,2962.4,2.4936]
[1752292600875,3.53077247,2962.5,2962.4,2.4936]
[1752292601474,7.69157247,2962.5,2962.4,2.4936]
[1752292607579,7.69157247,2962.5,2962.4,1.5325]
[1752292608177,2.23833,2962.0,2961.9,1.5991]
[1752292608374,2.23833,2962.0,2961.9,2.5629]
[1752292611483,1.5634,2962.0,2961.9,2.5629]
[1752292612080,2.23831,2962.0,2961.9,2.5629]
[1752292612782,1.5634,2962.0,2961.9,2.5629]
[1752292613285,2.23831,2962.0,2961.9,2.5629]
[1752292613682,1.5634,2962.0,2961.9,2.5629]
[1752292615378,2.23831,2962.0,2961.9,2.5629]
[1752292615581,1.5634,2962.0,2961.9,2.5629]
[1752292615884,2.23831,2962.0,2961.9,2.5629]
[1752292616781,1.5634,2962.0,2961.9,2.5629]
[1752292618084,2.23831,2962.0,2961.9,2.5629]
[1752292618285,1.5634,2962.0,2961.9,2.5629]
[1752292618684,2.23831,2962.0,2961.9,2.5629]
[1752292620889,1.5634,2962.0,2961.9,2.5629]
[1752292621088,2.23831,2962.0,2961.9,2.5629]
[1752292621782,1.61812,2962.4,2962.3,0.6397]
[1752292621987,2.23822,2962.4,2962.3,2.5629]
[1752292626693,0.67482,2962.4,2962.3,3.23774]
[1752292627295,0.67482,2962.4,2962.3,2.5629]
[1752292628096,3.88261,2962.5,2962.3,2.5629]
[1752292628397,1.55359556,2962.4,2962.3,1.5991]
[1752292628897,1.55359556,2962.4,2962.3,2.5629]
[1752292629300,3.11699556,2962.4,2962.3,2.5629]
[1752292631397,3.11699556,2962.4,2961.3,4.72408966]
[1752292631398,2.5092,2961.8,2961.7,1.5991]
[1752292631597,7.67893247,2961.8,2961.7,0.6397]
[1752292631900,7.67893247,2961.8,2961.7,2.5629]
[1752292636206,2.2429,2961.6,2961.5,0.6398]
[1752292636407,3.1924,2961.6,2961.5,0.6398]
[1752292636805,3.1924,2961.6,2961.5,2.5886]
[1752292637308,2.2264,2961.6,2961.5,2.5886]
[1752292639511,3.1924,2961.6,2961.5,1.6032]
[1752292640100,4.07134166,2961.6,2961.5,1.6032]
[1752292641212,3.1924,2961.6,2961.5,1.6032]
[1752292641407,1.9155,2961.6,2961.0,0.9854]
[1752292641615,2.22652,2961.1,2961.0,2.5886]
[1752292651620,3.51349247,2961.1,2961.0,2.5886]
[1752292660628,1.28697247,2961.1,2961.0,2.5886]
[1752292660825,3.8828,2961.6,2961.5,2.5886]
[1752292661323,1.6245,2961.6,2961.5,2.5886]
[1752292661724,0.9495,2961.6,2961.5,2.5886]
[1752292661924,1.6245,2961.6,2961.5,2.5886]
[1752292662523,0.9495,2961.6,2961.5,2.5886]
[1752292662724,1.6245,2961.6,2961.5,2.5886]
[1752292663123,0.9495,2961.8,2961.6,0.9807]
[1752292663329,0.9495,2961.8,2961.7,2.6059]
[1752292663529,2.50287042,2961.8,2961.7,2.6059]
[1752292663726,3.10477042,2961.8,2961.7,2.6059]
[1752292666931,0.87841042,2961.8,2961.7,3.28088]
[1752292667929,1.55337042,2961.8,2961.7,2.6059]
[1752292668132,1.64006,2961.8,2961.7,2.6059]
[1752292669428,2.29306,2961.8,2961.7,2.6059]
[1752292670436,1.6181,2961.8,2961.7,3.28088]
[1752292671233,2.29306,2961.8,2961.7,2.6059]
[1752292671628,3.2078,2961.9,2961.8,1.8806]
[1752292671824,3.2078,2961.9,2961.8,3.18856]
[1752292675835,1.28697247,2962.2,2962.1,1.5329]
[1752292676035,1.28697247,2962.2,2962.1,2.5136]
[1752292676236,3.2078,2962.3,2962.1,0.633]
[1752292676532,3.2078,2962.3,2962.2,1.30787]
[1752292676732,3.2078,2962.3,2962.2,3.18847]
[1752292677330,0.9651,2962.5,2962.3,0.67483]
[1752292677633,1.6181,2962.5,2962.4,2.5136]
[1752292680033,3.2078,2962.7,2962.6,2.5136]
[1752292680230,5.14777247,2962.7,2962.6,2.5136]
[1752292680435,6.11287247,2962.7,2962.6,2.5136]
[1752292680640,6.11287247,2962.7,2962.6,3.18837]
[1752292681035,1.9486,2962.6,2961.9,1.8806]
[1752292681327,1.28697247,2962.0,2961.9,3.18853]
[1752292681928,1.28697247,2962.2,2962.0,0.8999]
[1752292682136,1.28697247,2962.2,2962.1,3.18849]
[1752292683235,4.8259,2962.6,2962.5,2.5136]
[1752292683441,4.8259,2962.6,2962.5,3.1884]
[1752292684036,3.8608,2962.6,2962.5,3.1884]
[1752292684238,3.2078,2962.6,2962.5,3.1884]
[1752292685739,1.28697247,2962.7,2962.6,1.30777]
[1752292685938,1.82046112,2963.8,2963.5,1.30757]
[1752292686136,0.87679748,2963.6,2963.5,3.18817]
[1752292686742,0.9651,2963.8,2963.6,0.67455]
[1752292687041,1.6181,2963.8,2963.7,2.5136]
[1752292687237,2.6016,2963.8,2963.7,2.5136]
[1752292687636,1.6181,2963.8,2963.7,3.18812]
[1752292688638,1.6181,2964.0,2963.9,3.18808]
[1752292691743,2.6016,2964.0,2963.9,3.18808]
[1752292692338,3.2078,2964.2,2964.0,1.8806]
[1752292692641,3.8608,2964.2,2964.1,3.18803]
[1752292693047,4.8259,2964.2,2964.1,3.18803]
[1752292695139,1.8822,2964.1,2963.7,1.862]
[1752292695340,1.28697247,2963.8,2963.7,1.5516]
[1752292695540,26.8146,2964.2,2964.1,1.32613]
[1752292695738,27.787,2964.2,2964.1,3.22733]
[1752292696043,27.787,2964.2,2964.1,2.5529]
[1752292696246,4.789,2964.2,2964.1,3.22733]
[1752292697246,6.07597247,2964.2,2964.1,2.5529]
[1752292697745,6.07597247,2964.2,2964.1,3.22733]
[1752292698142,3.8166,2964.2,2964.1,3.22733]
[1752292699351,3.8166,2964.2,2964.1,2.5529]
[1752292699652,0.6088,2964.2,2964.1,2.5529]
[1752292699946,0.6088,2964.2,2964.1,3.22733]
[1752292700147,0.6088,2964.2,2964.1,2.5529]
[1752292700455,1.5812,2964.2,2964.1,2.5529]
[1752292700940,3.2078,2964.5,2964.2,0.9621]
[1752292701139,6.75031247,2964.5,2964.4,2.5529]
[1752292701339,6.07597247,2964.5,2964.4,2.5529]
[1752292701543,6.75031247,2964.5,2964.4,2.5529]
[1752292701948,4.49477247,2964.5,2964.4,3.22727]
[1752292702244,3.2078,2964.5,2964.4,3.22727]
[1752292702549,45.997,2964.8,2964.7,0.6517]
[1752292702748,45.997,2964.8,2964.7,2.5529]